[Event "January 9 Early 2024"]
[Site "https://www.chess.com"]
[Date "2024.01.11"]
[Round "6"]
[White "Carow, Johannes"]
[Black "Balla, Tamas-Kristof"]
[Result "1-0"]
[Board "279"]
[TimeControl "180+1"]
[WhiteFideId "24692050"]
[BlackFideId "1208497"]
[WhiteElo "2713"]
[BlackElo "2476"]
[WhiteTeam "GER"]
[BlackTeam "ROU"]
[WhiteClock "0:00:09"]
[BlackClock "0:00:11"]

1. d4 {[%clk 0:03:00]}  d5 {[%clk 0:02:59]} 2. Nf3 {[%clk 0:03:01]}  Nf6 {[%clk 0:02:55]} 3. g3 {[%clk 0:03:01]}  c5 {[%clk 0:02:47]} 4. Bg2 {[%clk 0:03:01]}  Nc6 {[%clk 0:02:47]} 5. O-O {[%clk 0:02:58]}  e6 {[%clk 0:02:41]} 6. dxc5 {[%clk 0:02:22]}  Bxc5 {[%clk 0:02:42]} 7. c4 {[%clk 0:02:22]}  O-O {[%clk 0:02:20]} 8. cxd5 {[%clk 0:02:22]}  exd5 {[%clk 0:02:19]} 9. b3 {[%clk 0:02:13]}  Re8 {[%clk 0:02:15]} 10. Bb2 {[%clk 0:02:13]}  d4 {[%clk 0:02:14]} 11. Nbd2 {[%clk 0:02:08]}  Bg4 {[%clk 0:02:12]} 12. Rc1 {[%clk 0:02:07]}  Bb6 {[%clk 0:02:12]} 13. Nc4 {[%clk 0:02:06]}  Qe7 {[%clk 0:02:08]} 14. Re1 {[%clk 0:01:42]}  Rad8 {[%clk 0:02:06]} 15. Nxb6 {[%clk 0:01:31]}  axb6 {[%clk 0:02:07]} 16. Qd2 {[%clk 0:01:31]}  Ne4 {[%clk 0:01:42]} 17. Qf4 {[%clk 0:01:31]}  Bh5 {[%clk 0:01:33]} 18. Qf5 {[%clk 0:00:31]}  Bg6 {[%clk 0:01:19]} 19. Qb5 {[%clk 0:00:31]}  Nf6 {[%clk 0:00:19]} 20. Qxb6 {[%clk 0:00:21]}  Nd5 {[%clk 0:00:19]} 21. Qb5 {[%clk 0:00:21]}  Be4 {[%clk 0:00:19]} 22. Red1 {[%clk 0:00:16]}  Nc3 {[%clk 0:00:17]} 23. Bxc3 {[%clk 0:00:15]}  dxc3 {[%clk 0:00:18]} 24. Qc4 {[%clk 0:00:13]}  c2 {[%clk 0:00:16]} 25. Re1 {[%clk 0:00:09]}  Nb4 {[%clk 0:00:09]} 26. a3 {[%clk 0:00:08]}  Na2 {[%clk 0:00:09]} 27. Rxc2 {[%clk 0:00:04]}  Bxc2 {[%clk 0:00:09]} 28. Qxc2 {[%clk 0:00:05]}  Qxa3 {[%clk 0:00:10]} 29. Ra1 {[%clk 0:00:04]}  Nb4 {[%clk 0:00:07]} 30. Qb1 {[%clk 0:00:01]}  Na2 {[%clk 0:00:04]} 31. Rxa2 {[%clk 0:00:01]}  Qc5 {[%clk 0:00:02]} 32. Ra1 {[%clk 0:00:02]}  Rxe2 {[%clk 0:00:02]} 33. Qf1 {[%clk 0:00:03]}  Rc2 {[%clk 0:00:02]} 34. Re1 {[%clk 0:00:03]}  Rc8 {[%clk 0:00:03]} 35. Ne5 {[%clk 0:00:03]}  h6 {[%clk 0:00:03]} 36. Nc4 {[%clk 0:00:04]}  Rc3 {[%clk 0:00:02]} 37. Ne3 {[%clk 0:00:04]}  Rxb3 {[%clk 0:00:03]} 38. Be4 {[%clk 0:00:04]}  Rc3 {[%clk 0:00:03]} 39. Qg2 {[%clk 0:00:04]}  b5 {[%clk 0:00:03]} 40. Rf1 {[%clk 0:00:05]}  b4 {[%clk 0:00:04]} 41. Qf3 {[%clk 0:00:05]}  Rc1 {[%clk 0:00:04]} 42. Nf5 {[%clk 0:00:05]}  Rxf1+ {[%clk 0:00:04]} 43. Kxf1 {[%clk 0:00:06]}  b3 {[%clk 0:00:05]} 44. Qxb3 {[%clk 0:00:05]}  Qc1+ {[%clk 0:00:04]} 45. Kg2 {[%clk 0:00:05]}  Qc5 {[%clk 0:00:04]} 46. Qf3 {[%clk 0:00:04]}  Qe5 {[%clk 0:00:05]} 47. Ne3 {[%clk 0:00:04]}  Re8 {[%clk 0:00:05]} 48. Bb1 {[%clk 0:00:04]}  Qe6 {[%clk 0:00:05]} 49. Nf5 {[%clk 0:00:04]}  Qf6 {[%clk 0:00:05]} 50. Qg4 {[%clk 0:00:04]}  Re5 {[%clk 0:00:05]} 51. Ne3 {[%clk 0:00:04]}  Re8 {[%clk 0:00:05]} 52. Be4 {[%clk 0:00:03]}  Qe5 {[%clk 0:00:05]} 53. Bf3 {[%clk 0:00:03]}  Qf6 {[%clk 0:00:05]} 54. h4 {[%clk 0:00:04]}  Re7 {[%clk 0:00:04]} 55. h5 {[%clk 0:00:04]}  Re8 {[%clk 0:00:05]} 56. Qd7 {[%clk 0:00:04]}  Rd8 {[%clk 0:00:04]} 57. Qc7 {[%clk 0:00:03]}  Re8 {[%clk 0:00:04]} 58. Ng4 {[%clk 0:00:04]}  Qg5 {[%clk 0:00:04]} 59. Ne3 {[%clk 0:00:03]}  Qf6 {[%clk 0:00:03]} 60. Qc2 {[%clk 0:00:04]}  Qg5 {[%clk 0:00:03]} 61. Qd3 {[%clk 0:00:04]}  Qf6 {[%clk 0:00:04]} 62. Bd1 {[%clk 0:00:04]}  Rd8 {[%clk 0:00:04]} 63. Qe4 {[%clk 0:00:03]}  Rf8 {[%clk 0:00:03]} 64. Bc2 {[%clk 0:00:04]}  g6 {[%clk 0:00:02]} 65. hxg6 {[%clk 0:00:05]}  fxg6 {[%clk 0:00:03]} 66. Qxg6+ {[%clk 0:00:05]}  Qxg6 {[%clk 0:00:04]} 67. Bxg6 {[%clk 0:00:06]}  Kg7 {[%clk 0:00:04]} 68. Bh5 {[%clk 0:00:06]}  Ra8 {[%clk 0:00:05]} 69. Bf3 {[%clk 0:00:07]}  Rf8 {[%clk 0:00:04]} 70. Be4 {[%clk 0:00:07]}  Rb8 {[%clk 0:00:05]} 71. f4 {[%clk 0:00:07]}  Kf6 {[%clk 0:00:05]} 72. Kf3 {[%clk 0:00:08]}  Re8 {[%clk 0:00:06]} 73. Nd5+ {[%clk 0:00:08]}  Kg7 {[%clk 0:00:06]} 74. g4 {[%clk 0:00:09]}  Rb8 {[%clk 0:00:06]} 75. f5 {[%clk 0:00:09]}  Rb3+ {[%clk 0:00:06]} 76. Kf4 {[%clk 0:00:09]}  Rb8 {[%clk 0:00:07]} 77. Nc7 {[%clk 0:00:10]}  Kf7 {[%clk 0:00:08]} 78. Ne6 {[%clk 0:00:11]}  Rb1 {[%clk 0:00:08]} 79. Nd4 {[%clk 0:00:11]}  Rb4 {[%clk 0:00:08]} 80. Nf3 {[%clk 0:00:11]}  Rb8 {[%clk 0:00:08]} 81. Nh4 {[%clk 0:00:11]}  Kf6 {[%clk 0:00:08]} 82. Ng2 {[%clk 0:00:10]}  Rb4 {[%clk 0:00:08]} 83. Ne3 {[%clk 0:00:11]}  Ra4 {[%clk 0:00:08]} 84. Nd5+ {[%clk 0:00:10]}  Kf7 {[%clk 0:00:08]} 85. Ke5 {[%clk 0:00:11]}  Ra7 {[%clk 0:00:08]} 86. Bf3 {[%clk 0:00:11]}  Ra3 {[%clk 0:00:08]} 87. Be2 {[%clk 0:00:11]}  Ra1 {[%clk 0:00:08]} 88. Bc4 {[%clk 0:00:11]}  Re1+ {[%clk 0:00:08]} 89. Kf4 {[%clk 0:00:11]}  Kg7 {[%clk 0:00:08]} 90. Nc7 {[%clk 0:00:11]}  Rc1 {[%clk 0:00:08]} 91. Ne6+ {[%clk 0:00:10]}  Kf6 {[%clk 0:00:09]} 92. Bd5 {[%clk 0:00:11]}  Rd1 {[%clk 0:00:09]} 93. Bf3 {[%clk 0:00:11]}  Ra1 {[%clk 0:00:09]} 94. Nc5 {[%clk 0:00:11]}  Rc1 {[%clk 0:00:09]} 95. Ne4+ {[%clk 0:00:12]}  Kg7 {[%clk 0:00:09]} 96. g5 {[%clk 0:00:13]}  hxg5+ {[%clk 0:00:10]} 97. Kxg5 {[%clk 0:00:13]}  Rc4 {[%clk 0:00:10]} 98. f6+ {[%clk 0:00:13]}  Kf8 {[%clk 0:00:09]} 99. Kg6 {[%clk 0:00:11]}  Rc1 {[%clk 0:00:09]} 100. Ng5 {[%clk 0:00:11]}  Rg1 {[%clk 0:00:09]} 101. Bd5 {[%clk 0:00:10]}  Rg3 {[%clk 0:00:07]} 102. Kf5 {[%clk 0:00:10]}  Rg1 {[%clk 0:00:06]} 103. Nh7+ {[%clk 0:00:10]}  Ke8 {[%clk 0:00:02]} 104. f7+ {[%clk 0:00:11]}  Kd7 {[%clk 0:00:02]} 105. f8=Q {[%clk 0:00:10]}  Rf1+ {[%clk 0:00:03]} 106. Ke5 {[%clk 0:00:11]}  Rxf8 {[%clk 0:00:04]} 107. Nxf8+ {[%clk 0:00:11]}  Ke7 {[%clk 0:00:04]} 108. Ne6 {[%clk 0:00:12]}  Kf7 {[%clk 0:00:05]} 109. Be4 {[%clk 0:00:13]}  Ke7 {[%clk 0:00:06]} 110. Nd4 {[%clk 0:00:11]}  Kf7 {[%clk 0:00:06]} 111. Bf5 {[%clk 0:00:11]}  Kg7 {[%clk 0:00:07]} 112. Ke6 {[%clk 0:00:11]}  Kh6 {[%clk 0:00:07]} 113. Kf6 {[%clk 0:00:12]}  Kh5 {[%clk 0:00:07]} 114. Nf3 {[%clk 0:00:12]}  Kh6 {[%clk 0:00:07]} 115. Bg4 {[%clk 0:00:13]}  Kh7 {[%clk 0:00:07]} 116. Ne5 {[%clk 0:00:13]}  Kh8 {[%clk 0:00:08]} 117. Nf7+ {[%clk 0:00:13]}  Kg8 {[%clk 0:00:09]} 118. Bf5 {[%clk 0:00:13]}  Kf8 {[%clk 0:00:08]} 119. Bh7 {[%clk 0:00:13]}  Ke8 {[%clk 0:00:09]} 120. Ne5 {[%clk 0:00:14]}  Kd8 {[%clk 0:00:09]} 121. Ke6 {[%clk 0:00:14]}  Kc7 {[%clk 0:00:09]} 122. Nd7 {[%clk 0:00:14]}  Kc6 {[%clk 0:00:10]} 123. Bd3 {[%clk 0:00:14]}  Kb7 {[%clk 0:00:09]} 124. Kd6 {[%clk 0:00:13]}  Ka7 {[%clk 0:00:09]} 125. Kc6 {[%clk 0:00:11]}  Ka8 {[%clk 0:00:09]} 126. Kc7 {[%clk 0:00:11]}  Ka7 {[%clk 0:00:10]} 127. Bc4 {[%clk 0:00:08]}  Ka8 {[%clk 0:00:10]} 128. Nb6+ {[%clk 0:00:08]}  Ka7 {[%clk 0:00:11]} 129. Nc8+ {[%clk 0:00:08]}  Ka8 {[%clk 0:00:11]} 130. Bd5# {[%clk 0:00:09]} 1-0

[Event "January 9 Early 2024"]
[Site "https://www.chess.com"]
[Date "2024.01.11"]
[Round "7"]
[White "Garbarino, Rodolfo"]
[Black "Vila Dupla, Aurelio"]
[Result "1-0"]
[Board "6"]
[TimeControl "180+1"]
[WhiteFideId "100412"]
[BlackFideId "2203383"]
[WhiteElo "2367"]
[BlackElo "2169"]
[WhiteTeam "ARG"]
[BlackTeam "ESP"]
[WhiteClock "0:02:19"]
[BlackClock "0:01:08"]

1. e4 {[%clk 0:02:56]}  c5 {[%clk 0:02:58]} 2. Nc3 {[%clk 0:02:52]}  d6 {[%clk 0:02:58]} 3. f4 {[%clk 0:02:51]}  g6 {[%clk 0:02:56]} 4. Nf3 {[%clk 0:02:51]}  Bg7 {[%clk 0:02:56]} 5. Bc4 {[%clk 0:02:51]}  Nc6 {[%clk 0:02:55]} 6. d3 {[%clk 0:02:50]}  e6 {[%clk 0:02:55]} 7. O-O {[%clk 0:02:42]}  Nge7 {[%clk 0:02:55]} 8. f5 {[%clk 0:02:42]}  gxf5 {[%clk 0:02:51]} 9. Qe1 {[%clk 0:02:40]}  a6 {[%clk 0:02:46]} 10. a4 {[%clk 0:02:38]}  Rb8 {[%clk 0:02:15]} 11. Bg5 {[%clk 0:02:31]}  Qc7 {[%clk 0:02:04]} 12. exf5 {[%clk 0:02:30]}  Ne5 {[%clk 0:01:08]} 13. f6 {[%clk 0:02:19]} 1-0

[Event "January 9 Early 2024"]
[Site "https://www.chess.com"]
[Date "2024.01.11"]
[Round "7"]
[White "Wu, Derek"]
[Black "Spitzl, Vinzent"]
[Result "1-0"]
[Board "7"]
[TimeControl "180+1"]
[WhiteFideId "30914558"]
[BlackFideId "12901253"]
[WhiteElo "2667"]
[BlackElo "2454"]
[WhiteTeam "USA"]
[BlackTeam "GER"]
[WhiteClock "0:02:13"]
[BlackClock "0:01:27"]

1. e4 {[%clk 0:03:00]}  d5 {[%clk 0:02:59]} 2. exd5 {[%clk 0:02:59]}  Qxd5 {[%clk 0:03:00]} 3. Nc3 {[%clk 0:03:00]}  Qd8 {[%clk 0:03:00]} 4. d4 {[%clk 0:03:00]}  Nf6 {[%clk 0:03:00]} 5. Nf3 {[%clk 0:03:00]}  g6 {[%clk 0:02:59]} 6. Bc4 {[%clk 0:03:00]}  Bg7 {[%clk 0:02:59]} 7. h3 {[%clk 0:02:59]}  a6 {[%clk 0:02:57]} 8. a4 {[%clk 0:02:58]}  Nc6 {[%clk 0:02:56]} 9. O-O {[%clk 0:02:56]}  O-O {[%clk 0:02:56]} 10. Re1 {[%clk 0:02:57]}  b6 {[%clk 0:02:56]} 11. Bg5 {[%clk 0:02:47]}  Bb7 {[%clk 0:02:55]} 12. Qd2 {[%clk 0:02:46]}  Nb4 {[%clk 0:02:44]} 13. Ne5 {[%clk 0:02:44]}  c5 {[%clk 0:02:32]} 14. d5 {[%clk 0:02:37]}  Nbxd5 {[%clk 0:02:18]} 15. Rad1 {[%clk 0:02:32]}  Nxc3 {[%clk 0:02:08]} 16. Qxc3 {[%clk 0:02:33]}  Qc8 {[%clk 0:02:08]} 17. Qb3 {[%clk 0:02:19]}  e6 {[%clk 0:01:48]} 18. Nxf7 {[%clk 0:02:18]}  Nd5 {[%clk 0:01:43]} 19. Nd6 {[%clk 0:02:15]}  Qc6 {[%clk 0:01:32]} 20. Nxb7 {[%clk 0:02:16]}  Qxb7 {[%clk 0:01:30]} 21. Rxe6 {[%clk 0:02:15]}  Qf7 {[%clk 0:01:28]} 22. Bxd5 {[%clk 0:02:12]}  Qxf2+ {[%clk 0:01:27]} 23. Kh1 {[%clk 0:02:13]} 1-0

[Event "January 9 Early 2024"]
[Site "https://www.chess.com"]
[Date "2024.01.11"]
[Round "7"]
[White "Filgueira, Hernan"]
[Black "Murthy, Pappu"]
[Result "1-0"]
[Board "9"]
[TimeControl "180+1"]
[WhiteFideId "101770"]
[BlackFideId "2013401"]
[WhiteElo "2550"]
[BlackElo "1909"]
[WhiteTeam "ARG"]
[BlackTeam "USA"]
[WhiteClock "0:02:14"]
[BlackClock "0:01:07"]

1. d4 {[%clk 0:02:56]}  Nf6 {[%clk 0:02:59]} 2. Nf3 {[%clk 0:02:53]}  d5 {[%clk 0:02:58]} 3. c4 {[%clk 0:02:51]}  e6 {[%clk 0:02:55]} 4. Nc3 {[%clk 0:02:50]}  Bb4 {[%clk 0:02:50]} 5. e3 {[%clk 0:02:49]}  O-O {[%clk 0:02:47]} 6. Bd3 {[%clk 0:02:48]}  dxc4 {[%clk 0:02:46]} 7. Bxc4 {[%clk 0:02:49]}  Nc6 {[%clk 0:02:45]} 8. O-O {[%clk 0:02:48]}  Qe7 {[%clk 0:02:42]} 9. Qe2 {[%clk 0:02:47]}  Rd8 {[%clk 0:02:35]} 10. Rd1 {[%clk 0:02:43]}  Bxc3 {[%clk 0:02:28]} 11. bxc3 {[%clk 0:02:42]}  Na5 {[%clk 0:02:28]} 12. Bd3 {[%clk 0:02:40]}  b6 {[%clk 0:02:22]} 13. e4 {[%clk 0:02:40]}  h6 {[%clk 0:02:21]} 14. c4 {[%clk 0:02:28]}  c5 {[%clk 0:02:16]} 15. e5 {[%clk 0:02:28]}  Nd7 {[%clk 0:02:07]} 16. Qe4 {[%clk 0:02:26]}  Nf8 {[%clk 0:01:49]} 17. Qxa8 {[%clk 0:02:25]}  Bb7 {[%clk 0:01:13]} 18. Qxa7 {[%clk 0:02:25]}  Ra8 {[%clk 0:01:14]} 19. Qxb6 {[%clk 0:02:24]}  Bxf3 {[%clk 0:01:13]} 20. gxf3 {[%clk 0:02:22]}  cxd4 {[%clk 0:01:09]} 21. Qxd4 {[%clk 0:02:21]}  Rd8 {[%clk 0:01:07]} 22. Qxd8 {[%clk 0:02:14]} 1-0

[Event "January 9 Early 2024"]
[Site "https://www.chess.com"]
[Date "2024.01.11"]
[Round "7"]
[White "Ioannidis, Evgenios"]
[Black "Wadsworth, Matthew J"]
[Result "0-1"]
[Board "10"]
[TimeControl "180+1"]
[WhiteFideId "4229274"]
[BlackFideId "415804"]
[WhiteElo "2788"]
[BlackElo "2653"]
[WhiteTeam "GRE"]
[BlackTeam "ENG"]
[WhiteClock "0:01:15"]
[BlackClock "0:01:47"]

1. d4 {[%clk 0:03:00]}  Nf6 {[%clk 0:02:59]} 2. c4 {[%clk 0:03:00]}  c5 {[%clk 0:03:00]} 3. d5 {[%clk 0:03:01]}  e6 {[%clk 0:03:00]} 4. Nc3 {[%clk 0:03:01]}  exd5 {[%clk 0:03:01]} 5. cxd5 {[%clk 0:03:01]}  d6 {[%clk 0:03:01]} 6. e4 {[%clk 0:03:02]}  g6 {[%clk 0:03:02]} 7. f4 {[%clk 0:03:03]}  Bg7 {[%clk 0:03:02]} 8. Bb5+ {[%clk 0:03:04]}  Nfd7 {[%clk 0:03:03]} 9. Be2 {[%clk 0:03:04]}  O-O {[%clk 0:03:01]} 10. Nf3 {[%clk 0:03:04]}  b6 {[%clk 0:03:02]} 11. O-O {[%clk 0:02:59]}  Ba6 {[%clk 0:03:02]} 12. Bxa6 {[%clk 0:02:43]}  Nxa6 {[%clk 0:03:03]} 13. Nb5 {[%clk 0:02:43]}  Qe7 {[%clk 0:02:24]} 14. Re1 {[%clk 0:02:38]}  c4 {[%clk 0:02:23]} 15. Nfd4 {[%clk 0:02:09]}  Nac5 {[%clk 0:02:06]} 16. Nc6 {[%clk 0:02:07]}  Qf6 {[%clk 0:02:06]} 17. e5 {[%clk 0:02:08]}  dxe5 {[%clk 0:02:00]} 18. fxe5 {[%clk 0:02:08]}  Qh4 {[%clk 0:01:53]} 19. Qf3 {[%clk 0:01:14]}  Qxe1+ {[%clk 0:01:48]} 20. Qf1 {[%clk 0:01:14]}  Qxf1+ {[%clk 0:01:47]} 21. Kxf1 {[%clk 0:01:15]}  Nxe5 {[%clk 0:01:47]} 0-1

[Event "January 9 Early 2024"]
[Site "https://www.chess.com"]
[Date "2024.01.11"]
[Round "7"]
[White "Vestby-Ellingsen, Mads"]
[Black "Seo, Jung Min"]
[Result "1/2-1/2"]
[Board "11"]
[TimeControl "180+1"]
[WhiteFideId "1520857"]
[BlackFideId "1734687"]
[WhiteElo "2644"]
[BlackElo "2854"]
[WhiteTeam "NOR"]
[BlackTeam "SWE"]
[WhiteClock "0:00:55"]
[BlackClock "0:01:58"]

1. d4 {[%clk 0:03:00]}  Nf6 {[%clk 0:03:00]} 2. Bg5 {[%clk 0:03:01]}  d5 {[%clk 0:02:57]} 3. e3 {[%clk 0:03:01]}  c5 {[%clk 0:02:57]} 4. Bxf6 {[%clk 0:02:55]}  gxf6 {[%clk 0:02:58]} 5. dxc5 {[%clk 0:02:55]}  e6 {[%clk 0:02:56]} 6. c4 {[%clk 0:02:55]}  dxc4 {[%clk 0:02:54]} 7. Nd2 {[%clk 0:02:55]}  c3 {[%clk 0:02:52]} 8. bxc3 {[%clk 0:02:55]}  Bxc5 {[%clk 0:02:52]} 9. Qh5 {[%clk 0:02:56]}  Be7 {[%clk 0:02:48]} 10. Ngf3 {[%clk 0:02:54]}  Nc6 {[%clk 0:02:47]} 11. Bb5 {[%clk 0:02:52]}  Bd7 {[%clk 0:02:46]} 12. O-O {[%clk 0:02:49]}  O-O {[%clk 0:02:45]} 13. Ne4 {[%clk 0:02:42]}  Qa5 {[%clk 0:02:02]} 14. Neg5 {[%clk 0:01:08]}  fxg5 {[%clk 0:02:00]} 15. Nxg5 {[%clk 0:01:09]}  Bxg5 {[%clk 0:01:57]} 16. Qxg5+ {[%clk 0:01:09]}  Kh8 {[%clk 0:01:58]} 17. Qf6+ {[%clk 0:01:09]}  Kg8 {[%clk 0:01:58]} 18. Qg5+ {[%clk 0:00:54]}  Kh8 {[%clk 0:01:58]} 19. Qf6+ {[%clk 0:00:54]}  Kg8 {[%clk 0:01:58]} 20. Qg5+ {[%clk 0:00:55]} 1/2-1/2

[Event "January 9 Early 2024"]
[Site "https://www.chess.com"]
[Date "2024.01.11"]
[Round "7"]
[White "Cristobal, Manuel"]
[Black "Shuvalov, Evgenij"]
[Result "1-0"]
[Board "13"]
[TimeControl "180+1"]
[WhiteFideId "112879"]
[BlackFideId "4187237"]
[WhiteElo "2708"]
[BlackElo "2526"]
[WhiteTeam "ARG"]
[BlackTeam "FID"]
[WhiteClock "0:01:52"]
[BlackClock "0:01:07"]

1. d4 {[%clk 0:02:51]}  Nf6 {[%clk 0:02:59]} 2. Nf3 {[%clk 0:02:50]}  g6 {[%clk 0:02:59]} 3. e3 {[%clk 0:02:50]}  Bg7 {[%clk 0:02:59]} 4. Be2 {[%clk 0:02:51]}  O-O {[%clk 0:02:59]} 5. O-O {[%clk 0:02:52]}  c5 {[%clk 0:02:58]} 6. c4 {[%clk 0:02:50]}  cxd4 {[%clk 0:02:58]} 7. exd4 {[%clk 0:02:51]}  d5 {[%clk 0:02:58]} 8. Nc3 {[%clk 0:02:49]}  Nc6 {[%clk 0:02:57]} 9. cxd5 {[%clk 0:02:41]}  Nxd5 {[%clk 0:02:56]} 10. Bg5 {[%clk 0:02:41]}  Nxc3 {[%clk 0:02:46]} 11. bxc3 {[%clk 0:02:39]}  Qa5 {[%clk 0:02:46]} 12. d5 {[%clk 0:02:26]}  Rd8 {[%clk 0:02:44]} 13. c4 {[%clk 0:02:19]}  Qc7 {[%clk 0:01:44]} 14. Rb1 {[%clk 0:02:13]}  Bf5 {[%clk 0:01:41]} 15. Rb5 {[%clk 0:02:03]}  h6 {[%clk 0:01:31]} 16. Bh4 {[%clk 0:02:01]}  Ne5 {[%clk 0:01:27]} 17. Bg3 {[%clk 0:01:57]}  Nxf3+ {[%clk 0:01:22]} 18. Bxf3 {[%clk 0:01:57]}  Qxc4 {[%clk 0:01:20]} 19. Rxb7 {[%clk 0:01:57]}  Be4 {[%clk 0:01:13]} 20. Rxe7 {[%clk 0:01:52]}  Bxf3 {[%clk 0:01:10]} 21. Qxf3 {[%clk 0:01:51]}  Qxd5 {[%clk 0:01:11]} 22. Re8+ {[%clk 0:01:51]}  Bf8 {[%clk 0:01:06]} 23. Qxd5 {[%clk 0:01:51]}  Rxd5 {[%clk 0:01:07]} 24. Rxa8 {[%clk 0:01:52]} 1-0

[Event "January 9 Early 2024"]
[Site "https://www.chess.com"]
[Date "2024.01.11"]
[Round "7"]
[White "Hamblok, Roel"]
[Black "Bryakin, Mikhail"]
[Result "0-1"]
[Board "15"]
[TimeControl "180+1"]
[WhiteFideId "209317"]
[BlackFideId "4165314"]
[WhiteElo "2590"]
[BlackElo "2843"]
[WhiteTeam "BEL"]
[BlackTeam "SRB"]
[WhiteClock "0:00:57"]
[BlackClock "0:01:34"]

1. e4 {[%clk 0:03:00]}  d5 {[%clk 0:02:55]} 2. exd5 {[%clk 0:03:00]}  Nf6 {[%clk 0:02:56]} 3. d4 {[%clk 0:02:59]}  Bg4 {[%clk 0:02:55]} 4. f3 {[%clk 0:02:56]}  Bf5 {[%clk 0:02:55]} 5. g4 {[%clk 0:02:49]}  Bg6 {[%clk 0:02:55]} 6. c4 {[%clk 0:02:44]}  e6 {[%clk 0:02:51]} 7. dxe6 {[%clk 0:02:39]}  Nc6 {[%clk 0:02:50]} 8. Be3 {[%clk 0:02:26]}  Nb4 {[%clk 0:02:38]} 9. Na3 {[%clk 0:02:21]}  Qd6 {[%clk 0:02:27]} 10. exf7+ {[%clk 0:02:13]}  Kxf7 {[%clk 0:02:21]} 11. g5 {[%clk 0:01:58]}  Re8 {[%clk 0:02:18]} 12. Qd2 {[%clk 0:01:55]}  Qf4 {[%clk 0:01:59]} 13. Ne2 {[%clk 0:01:24]}  Rxe3 {[%clk 0:01:50]} 14. gxf6 {[%clk 0:01:11]}  Qxf3 {[%clk 0:01:50]} 15. Rg1 {[%clk 0:01:10]}  Nd3+ {[%clk 0:01:45]} 16. Kd1 {[%clk 0:01:09]}  Bb4 {[%clk 0:01:39]} 17. fxg7 {[%clk 0:01:01]}  Rhe8 {[%clk 0:01:37]} 18. g8=Q+ {[%clk 0:00:57]}  Kxg8 {[%clk 0:01:34]} 0-1

[Event "January 9 Early 2024"]
[Site "https://www.chess.com"]
[Date "2024.01.11"]
[Round "7"]
[White "Tuncer, Tuna"]
[Black "Martinez, Shawn"]
[Result "1-0"]
[Board "16"]
[TimeControl "180+1"]
[WhiteFideId "6349269"]
[BlackFideId "2039770"]
[WhiteElo "2626"]
[BlackElo "2442"]
[WhiteTeam "TUR"]
[BlackTeam "USA"]
[WhiteClock "0:01:53"]
[BlackClock "0:00:51"]

1. e4 {[%clk 0:03:00]}  c5 {[%clk 0:02:59]} 2. Nf3 {[%clk 0:03:01]}  e6 {[%clk 0:03:00]} 3. c3 {[%clk 0:03:02]}  d5 {[%clk 0:02:59]} 4. e5 {[%clk 0:03:02]}  Ne7 {[%clk 0:02:58]} 5. d4 {[%clk 0:03:02]}  Nec6 {[%clk 0:02:59]} 6. Bd3 {[%clk 0:03:01]}  Be7 {[%clk 0:02:57]} 7. O-O {[%clk 0:03:01]}  b6 {[%clk 0:02:58]} 8. Nbd2 {[%clk 0:02:58]}  a5 {[%clk 0:02:55]} 9. Re1 {[%clk 0:02:57]}  Ba6 {[%clk 0:02:54]} 10. Bxa6 {[%clk 0:02:57]}  Nxa6 {[%clk 0:02:53]} 11. Nf1 {[%clk 0:02:58]}  Qc7 {[%clk 0:02:52]} 12. Be3 {[%clk 0:02:52]}  c4 {[%clk 0:02:43]} 13. b3 {[%clk 0:02:49]}  b5 {[%clk 0:02:43]} 14. a4 {[%clk 0:02:48]}  b4 {[%clk 0:02:36]} 15. bxc4 {[%clk 0:02:48]}  dxc4 {[%clk 0:02:36]} 16. d5 {[%clk 0:02:44]}  exd5 {[%clk 0:02:24]} 17. Qxd5 {[%clk 0:02:45]}  bxc3 {[%clk 0:02:21]} 18. e6 {[%clk 0:02:41]}  O-O {[%clk 0:01:55]} 19. exf7+ {[%clk 0:02:39]}  Rxf7 {[%clk 0:01:50]} 20. Qxc4 {[%clk 0:02:32]}  Ncb4 {[%clk 0:01:45]} 21. Qb3 {[%clk 0:02:13]}  Bf6 {[%clk 0:01:43]} 22. Bd4 {[%clk 0:02:01]}  Kh8 {[%clk 0:01:33]} 23. Ne5 {[%clk 0:01:52]}  Bxe5 {[%clk 0:01:14]} 24. Bxe5 {[%clk 0:01:53]}  Qb6 {[%clk 0:01:11]} 25. Qxf7 {[%clk 0:01:52]}  Rg8 {[%clk 0:00:52]} 26. Bxg7+ {[%clk 0:01:52]}  Rxg7 {[%clk 0:00:51]} 27. Re8+ {[%clk 0:01:53]} 1-0

[Event "January 9 Early 2024"]
[Site "https://www.chess.com"]
[Date "2024.01.11"]
[Round "7"]
[White "Beerdsen, Thomas"]
[Black "Skvortsov, Andrei"]
[Result "1-0"]
[Board "17"]
[TimeControl "180+1"]
[WhiteFideId "1030108"]
[BlackFideId "24108600"]
[WhiteElo "2852"]
[BlackElo "2676"]
[WhiteTeam "NED"]
[BlackTeam "MNE"]
[WhiteClock "0:02:18"]
[BlackClock "0:00:12"]

1. a4 {[%clk 0:03:00]}  c5 {[%clk 0:02:58]} 2. Ra3 {[%clk 0:03:01]}  Nc6 {[%clk 0:02:57]} 3. Rg3 {[%clk 0:03:02]}  Nf6 {[%clk 0:02:57]} 4. e3 {[%clk 0:03:03]}  d5 {[%clk 0:02:57]} 5. Bb5 {[%clk 0:03:02]}  Bd7 {[%clk 0:02:56]} 6. b3 {[%clk 0:03:02]}  e6 {[%clk 0:02:54]} 7. Bb2 {[%clk 0:03:02]}  Ne7 {[%clk 0:02:53]} 8. Bxd7+ {[%clk 0:03:01]}  Qxd7 {[%clk 0:02:48]} 9. Nf3 {[%clk 0:03:01]}  Nf5 {[%clk 0:02:44]} 10. Ne5 {[%clk 0:03:01]}  Qc7 {[%clk 0:02:44]} 11. f4 {[%clk 0:02:48]}  Nxg3 {[%clk 0:02:41]} 12. hxg3 {[%clk 0:02:49]}  Nd7 {[%clk 0:02:31]} 13. Qh5 {[%clk 0:02:44]}  Nxe5 {[%clk 0:02:26]} 14. Bxe5 {[%clk 0:02:45]}  Qd7 {[%clk 0:02:24]} 15. Nc3 {[%clk 0:02:45]}  a6 {[%clk 0:02:20]} 16. a5 {[%clk 0:02:30]}  Rc8 {[%clk 0:02:00]} 17. Na4 {[%clk 0:02:30]}  Qd8 {[%clk 0:01:56]} 18. Nb6 {[%clk 0:02:29]}  Rb8 {[%clk 0:01:54]} 19. O-O {[%clk 0:02:24]}  Rc8 {[%clk 0:01:38]} 20. f5 {[%clk 0:02:21]}  exf5 {[%clk 0:00:13]} 21. Qxf5 {[%clk 0:02:18]}  Rc7 {[%clk 0:00:12]} 22. Bxc7 {[%clk 0:02:18]}  Qxc7 {[%clk 0:00:13]} 23. Nxd5 {[%clk 0:02:19]}  Qd7 {[%clk 0:00:12]} 24. Qe5+ {[%clk 0:02:18]} 1-0